Workbook

Sheet Anexo IV - Planilha Custos
B1: Ministério do Desenvolvimento Regional - M D R Companhia de Desenvolvimento dos Vales do São Francisco e do Parnaíba 8ª Superintendência Regional
A6: Anexo IV: Planilha de Custos
A9: Município/UF: São Luís/MA
A10: Ano Acordo, Convenção Coletiva ou Sentença Normativa em Dissídio Coletivo: 2022/2023
A11: Nº de meses de execução contratual: 12 meses
A13: Tipo de Posto | B13: Quantidade de Postos | C13: Valor Unitário Mensal (R$) | D13: Preço Máximo Mensal (R$) | E13: Preço Máximo Anual (R$)
A15: Vigilância 12x36 (Diurno) | B15: 1 | C15: =IFERROR('Posto Diurno'!F151,"") -> 10010.09 | D15: =IFERROR(B15*C15,"") -> 10010.09 | E15: =IFERROR(D15*12,"") -> 120121.08
A16: Vigilância 12x36 (Noturno) | B16: 1 | C16: =IFERROR('Posto Noturno'!F151,"") -> 11439.75 | D16: =IFERROR(B16*C16,"") -> 11439.75 | E16: =IFERROR(D16*12,"") -> 137277
A17: Valor Máximo Mensal do Contrato (1 Posto Diurno e 1 Posto Noturno) | E17: =IFERROR(D15+D16,"") -> 21449.84
A18: Valor Máximo Anual do Contrato (12 meses) | E18: =IFERROR(E17*12,"") -> 257398.08

Sheet Posto Diurno
B6: POSTO DIURNO
B9: Item | C9: Posto | D9: Custo Estimado por posto | E9: Quantidade de postos | F9: Valor mensal | G9: Valor anual
B11: 1 | C11: Vigilante (sem adicional noturno) | D11: =F151 -> 10010.09 | E11: 1 | F11: =F160 -> 10010.09 | G11: =F161 -> 120121.08
B13: E | C13: RESPONSÁVEL PELO PROJETO
C14: Unidade de Serviços Auxiliares.
B16: PLANILHA DE COMPOSIÇÃO DE CUSTOS E FORMAÇÃO DE PREÇOS
B18: MÃO-DE-OBRA VINCULADA À EXECUÇÃO CONTRATUAL
B19: Planilha de Proposta de Preço
C20: Processo nº: 59580.000XXX/20XX-XX
C21: Licitação nº__________ Pregão Eletrônico nº XX/2022
B23: A | C23: Data da apresentação da proposta
B24: B | C24: Município/UF | D24: São Luís/ MA
B25: C | C25: Ano Acordo, Convenção Coletiva ou Sentença Normativa em Dissídio Coletivo. | D25: 2022-02-01
B26: D | C26: Nº de meses de execução contratual | D26: 12 meses
B28: Mão-de-obra vinculada à execução contratual
B29: Dados complementares para composição dos custos referente à mão-de-obra
B30: 1 | C30: Tipo de serviço | D30: Vigilância
B31: 2 | C31: Salário normativo da categoria profissional | D31: 1381.57
B32: 3 | C32: Categoria profissional | D32: Vigilância
B33: 4 | C33: Data base da categoria | D33: 2022-02-01
B35: Módulo 1: Composição da Remuneração
B36: 1 | C36: Composição da Remuneração | E36: Valor (R$)
B37: A | C37: Salário Base | E37: =D31 -> 1381.57
B38: B | C38: Adicional de periculosidade | D38: 0.3 | E38: =D38*E37 -> 414.471
B39: C | C39: Adicional de insalubridade | D39: 0 | E39: 0
B40: D | C40: Adicional noturno | D40: 0 | E40: =E37*D40 -> 0
B41: E | C41: Hora noturna adicional | D41: 0 | E41: 0
B42: F | C42: Adicional de risco de vida | D42: 0 | E42: =E37*D42 -> 0
B43: G | C43: Intervalo intrajornada | E43: =SUM(E37:E38)/220*1.5*15 -> 183.6860114
B44: Total da Remuneração | E44: =E37+E38+E39+E40+E41+E42+E43 -> 1979.727011
B46: Módulo 2: Benefícios Mensais e diários
B47: 2 | C47: Benefícios Mensais e Diários | E47: Valor (R$)
B48: A | C48: Transporte (R$ 3,90 x15 dias x 2 viagens) | E48: =(3.9*15*2) -> 117
B49: C | C49: Auxílio alimentação (R$ 22,12 x 15 plantões) | E49: =22.12*15 -> 331.8
B50: D | C50: Plano de saúde | D50: 0.038 | E50: =D50*D31 -> 52.49966
B51: E | C51: Auxílio creche | E51: 0
B52: F | C52: Seguro de vida | E52: =SUM(15.5+12)/2 -> 13.75
B53: G | C53: Auxílio invalidez | E53: 0
B54: H | C54: Auxílio funeral | E54: 0
B55: I | C55: Outros (Exames Médicos) | E55: 0
B56: Total de benefícios mensais e diários | E56: =SUM(E48:E55) -> 515.04966
B58: Módulo 3: Insumos Diversos
B59: 3 | C59: Insumos diversos | E59: Valor (R$)
B60: A | C60: Uniformes | E60: =AVERAGE(Insumos!G42,Insumos!G68,Insumos!G94) -> 20.92333333
B61: B | C61: Materiais | E61: =AVERAGE(Insumos!G48,Insumos!G74,Insumos!G100) -> 37.54
B62: C | C62: Equipamentos | E62: =AVERAGE(Insumos!G55,Insumos!G81) -> 149.88
B63: D | C63: Outros (Especificar) | E63: 0
B64: Total de Insumos Diversos | E64: =SUM(E60:E63) -> 208.3433333
B66: Módulo 4: Encargos Sociais e Trabalhistas
B67: Submódulo 4.1 – Encargos previdenciários e FGTS
B68: 4.1 | C68: Encargos previdenciários e FGTS | D68: % | E68: Valor (R$)
B69: A | C69: INSS | D69: 0.2 | E69: =E44*0.2 -> 395.9454023
B70: B | C70: SESI OU SESC | D70: 0.015 | E70: =E44*0.015 -> 29.69590517
B71: C | C71: SENAI OU SENAC | D71: 0.01 | E71: =E44*0.01 -> 19.79727011
B72: D | C72: INCRA | D72: 0.002 | E72: =E44*0.002 -> 3.959454023
B73: E | C73: Salário Educação | D73: 0.025 | E73: =E44*0.025 -> 49.49317528
B74: F | C74: FGTS | D74: 0.08 | E74: =E44*0.08 -> 158.3781609
B75: G | C75: Seguro Acidente de Trabalho | D75: 0.03 | E75: =E44*0.03 -> 59.39181034
B76: H | C76: SEBRAE | D76: 0.006 | E76: =E44*0.006 -> 11.87836207
B77: Total | D77: =SUM(D69:D76) -> 0.368 | E77: =SUM(E69:E76) -> 728.5395402
B79: Submódulo 4.2 – 13º salário e Adicional de Férias
B80: 4.2 | C80: 13º Salário e Adicional de Férias | E80: Valor (R$)
B81: A | C81: 13º Salário | D81: =5/56 -> 0.08928571429 | E81: =D81*E44 -> 176.7613403
B82: B | C82: Adicional de Férias | D82: =(1/3)*D81 -> 0.02976190476 | E82: =E44*D82 -> 58.92044677
B83: Subtotal | D83: =D81+D82 -> 0.119047619 | E83: =SUM(E81:E82) -> 235.6817871
B84: C | C84: Incidência do Submódulo 4.1 sobre 13º salário e adicional de férias | D84: =D77 -> 0.368 | E84: =D84*E83 -> 86.73089764
B85: Total | D85: =SUM(D83:D84) -> 0.487047619 | E85: =SUM(E83:E84) -> 322.4126847
B87: Submódulo 4.3 – Afastamento Maternidade
B88: 4.3 | C88: Afastamento Maternidade | E88: Valor (R$)
B89: A | C89: Afastamento Maternidade | D89: 0.0137 | E89: =E44*D89 -> 27.12226006
B90: B | C90: Incidência do submódulo 4.1 sobre afastamento maternidade | D90: =D77*D89 -> 0.0050416 | E90: =E89*D90 -> 0.1367395863
B91: Total | D91: =SUM(D89:D90) -> 0.0187416 | E91: =SUM(E89:E90) -> 27.25899964
B93: Submódulo 4.4 – Provisão para Rescisão
B94: 4.4 | C94: Provisão para Rescisão | E94: Valor (R$)
B95: A | C95: Aviso prévio Indenizado | D95: =((1/12)* 0.05) -> 0.004166666667 | E95: =E44*D95 -> 8.248862547
B96: B | C96: Incidência do FGTS sobre aviso prévio indenizado (provisão para rescisão) | D96: =D74*D95 -> 0.0003333333333 | E96: =E44*D96 -> 0.6599090038
B97: C | C97: Multa do FGTS do aviso prévio indenizado (manual) | D97: =0.08*0.5*0.9*(1 + 5/56+5/56+1/3*5/56) -> 0.0435 | E97: =D97*E44 -> 86.11812499
B98: D | C98: Aviso prévio trabalhado (manual) | D98: =((7/30)/12)*0.02 -> 0.0003888888889 | E98: =E44*D98 -> 0.7698938378
B99: E | C99: Incidência do submódulo 4.1 sobre aviso prévio trabalhado | D99: =D77 -> 0.368 | E99: =E98*D77 -> 0.2833209323
B100: F | C100: Multa FGTS do aviso prévio trabalhado | D100: =(40%)*D74 -> 0.032 | E100: =D100*E98 -> 0.02463660281
B101: Total | D101: =SUM(D95:D100) -> 0.4483888889 | E101: =SUM(E95:E100) -> 96.10474792
B103: Submódulo 4.5 – Custo de Reposição do Profissional Ausente
B104: 4.5 | C104: Composição do custo de Reposição do Profissional Ausente | E104: Valor (R$)
B105: A | C105: Férias | D105: =(5/56) -> 0.08928571429 | E105: =E44*D105 -> 176.7613403
B106: B | C106: Ausência por doença | D106: =(5.96/30)/12 -> 0.01655555556 | E106: =E44*D106 -> 32.77548052
B107: C | C107: Licença paternidade | D107: =((5/30)/12)*0.015 -> 0.0002083333333 | E107: =E44*D107 -> 0.4124431274
B108: D | C108: Ausências legais | D108: =(2.96/30)*(1/12) -> 0.008222222222 | E108: =E44*D108 -> 16.27775543
B109: E | C109: Ausência por acidente de trabalho | D109: =((15/30)/12)*0.0078 -> 0.000325 | E109: =E44*D109 -> 0.6434112787
B110: F | C110: Outros | D110: 0 | E110: 0
B111: Subtotal | D111: =SUM(D105:D110) -> 0.1145968254 | E111: =SUM(E105:E110) -> 226.8704307
B112: G | C112: Incidência do submódulo 4.1 sobre o Custo de reposição | D112: =D77 -> 0.368 | E112: =E111*D112 -> 83.48831848
B113: Total | D113: =SUM(D111:D112) -> 0.4825968254 | E113: =SUM(E111:E112) -> 310.3587491
B115: Quadro – resumo – Módulo 4 – Encargos sociais e trabalhistas
B116: 4 | C116: Encargos Sociais e Trabalhistas | E116: Valor (R$)
B117: 4.1 | C117: 13º salário+Adicional de Férias | E117: =E85 -> 322.4126847
B118: 4.2 | C118: Encargos Previdenciários e FGTS | E118: =E77 -> 728.5395402
B119: 4.3 | C119: Afastamento Maternidade | E119: =E91 -> 27.25899964
B120: 4.4 | C120: Custo de Rescisão | E120: =E101 -> 96.10474792
B121: 4.5 | C121: Custo de Reposição do Profissional Ausente | E121: =E113 -> 310.3587491
B122: 4.6 | C122: Outros | E122: 0
B123: Total | E123: =SUM(E117:E122) -> 1484.674722
B125: Módulo 5: Custos indiretos, tributos e lucro
B126: 5 | C126: Custos Indiretos, Tributos e Lucro | D126: % | E126: Valor (R$)
B127: A | C127: Custos Indiretos (Portaria nº 7 da IN nº2/2008) | D127: 0.05 | E127: =E144*D127 -> 209.3897363
B128: B | C128: Tributos
B129: B.1 | C129: Tributos Federais
B130: B.1.1 | C130: PIS (depende do regime de tributação) | D130: 0.0065 | E130: =(E144+E127+E135)*D130 -> 29.94273229
B131: B.1.1 | C131: COFINS (depende do regime de tributação) | D131: 0.03 | E131: =(E144+E127+E135)*D131 -> 138.197226
B132: B.2 | C132: Tributos Estaduais (ISS) | D132: 0.05 | E132: =(E144+E127+E135)*D132 -> 230.3287099
B133: B.3 | C133: Tributos Municipais | E133: 0
B134: B.4 | C134: Outros Tributos | E134: 0
B135: C | C135: Lucro | D135: 0.05 | E135: =(E44+E56+E64+E123)*D135 -> 209.3897363
B136: Total | E136: =SUM(E127:E135) -> 817.2481408
B138: Anexo III – B – Quadro resumo do custo por empregado
B139: Mão-de-obra vinculada à execução contratual (valor por empregado) | E139: Valor (R$)
B140: A | C140: Módulo 1- Composição da Remuneração | E140: =E44 -> 1979.727011
B141: B | C141: Módulo 2- Benefícios Mensais e Diários | E141: =E56 -> 515.04966
B142: C | C142: Módulo 3- Insumos Diversos (uniformes, materiais, equipamentos e outros) | E142: =E64 -> 208.3433333
B143: D | C143: Módulo 4- Encargos Sociais e Trabalhistas | E143: =E123 -> 1484.674722
B144: Subtotal (A+B+C+D) | E144: =SUM(E140:E143) -> 4187.794726
B145: E | C145: Módulo 5 – Custos indiretos, tributos e lucro | E145: =E136 -> 817.2481408
B146: Valor total por empregado | E146: =SUM(E144:E145) -> 5005.042867
B148: Anexo III –C – Quadro-resumo – Valor Mensal dos Serviços
B149: Tipo de serviço | D149: Valor proposto por empregado | E149: Qtde de empregados por posto | F149: Valor proposto por posto | G149: Qtde de postos | H149: Valor total dos serviços
B150: (A) | D150: (B) | E150: (C) | F150: (D)=(BXC) | G150: (E) | H150: (F)=(DxE)
B151: I | C151: Serviço 1 (sem adicional noturno) | D151: =E146 -> 5005.042867 | E151: 2 | F151: =ROUND(D151*E151,2) -> 10010.09 | G151: 1 | H151: =ROUND(F151*G151,2) -> 10010.09
B152: II | C152: Serviço 2 (indicar) | D152: 0 | F152: 0 | H152: 0
B154: Valor mensal dos serviços (I+II) | H154: =ROUND(SUM(H151:H153),2) -> 10010.09
B156: Anexo III –D – Quadro-demonstrativo – Valor Global da proposta
B157: Valor global da proposta
C158: Descrição | F158: Valor (R$)
B159: A | C159: Valor proposto por unidade de medida | F159: =F151 -> 10010.09
B160: B | C160: Valor mensal do serviço | F160: =H154 -> 10010.09
B161: C | C161: Valor global da proposta (valor mensal do serviço x nº meses do contrato) | F161: =ROUND(F160*12,2) -> 120121.08

Sheet Posto Noturno
B6: POSTO NOTURNO
B9: Item | C9: Posto | D9: Custo Estimado por posto | E9: Quantidade de postos | F9: Valor mensal | G9: Valor anual
B11: 1 | C11: Vigilante (com adicional noturno) | D11: =F151 -> 11439.75 | E11: 1 | F11: =F160 -> 11439.75 | G11: =F161 -> 137277
B13: E | C13: RESPONSÁVEL PELO PROJETO
C14: Unidade de Serviços Auxiliares.
B16: PLANILHA DE COMPOSIÇÃO DE CUSTOS E FORMAÇÃO DE PREÇOS
B18: MÃO-DE-OBRA VINCULADA À EXECUÇÃO CONTRATUAL
B19: Planilha de Proposta de Preço
C20: Processo nº: 59580.000XXX/20XX-XX
C21: Licitação nº__________ Pregão Eletrônico nº XX/2022
B23: A | C23: Data da apresentação da proposta
B24: B | C24: Município/UF | D24: São Luís/ MA
B25: C | C25: Ano Acordo, Convenção Coletiva ou Sentença Normativa em Dissídio Coletivo. | D25: 2022-02-01
B26: D | C26: Nº de meses de execução contratual | D26: 12 meses
B28: Mão-de-obra vinculada à execução contratual
B29: Dados complementares para composição dos custos referente à mão-de-obra
B30: 1 | C30: Tipo de serviço | D30: Vigilância
B31: 2 | C31: Salário normativo da categoria profissional | D31: ='Posto Diurno'!D31 -> 1381.57
B32: 3 | C32: Categoria profissional | D32: Vigilância
B33: 4 | C33: Data base da categoria | D33: 2022-02-01
B35: Módulo 1: Composição da Remuneração
B36: 1 | C36: Composição da Remuneração | E36: Valor (R$)
B37: A | C37: Salário Base | E37: =D31 -> 1381.57
B38: B | C38: Adicional de periculosidade | D38: 0.3 | E38: =D38*E37 -> 414.471
B39: C | C39: Adicional de insalubridade | D39: 0 | E39: 0
B40: D | C40: Adicional noturno | D40: 0 | E40: =(E37+E38)/220*0.2*15*7 -> 171.4402773
B41: E | C41: Hora Noturna Reduzida - Súmula 444 | D41: 0 | E41: =(E37+E38+E40)/220*1.5*15 -> 201.2196761
B42: F | C42: Adicional de risco de vida | D42: 0 | E42: =E37*D42 -> 0
B43: G | C43: Intervalo intrajornada | E43: =SUM(E37)/220*1.5*15 -> 141.2969318
B44: Total da Remuneração | E44: =E37+E38+E39+E40+E41+E42+E43 -> 2309.997885
B46: Módulo 2: Benefícios Mensais e diários
B47: 2 | C47: Benefícios Mensais e Diários | E47: Valor (R$)
B48: A | C48: Transporte (R$ 3,90 x15 dias x 2 viagens) | E48: =(3.9*15*2) -> 117
B49: C | C49: Auxílio alimentação (R$ 22,12 x 15 plantões) | E49: =22.12*15 -> 331.8
B50: D | C50: Plano de saúde | D50: 0.038 | E50: =D50*E37 -> 52.49966
B51: E | C51: Auxílio creche | E51: 0
B52: F | C52: Seguro de vida | E52: =SUM(15.5+12)/2 -> 13.75
B53: G | C53: Auxílio invalidez | E53: 0
B54: H | C54: Auxílio funeral | E54: 0
B55: I | C55: Outros (Exames Médicos) | E55: 0
B56: Total de benefícios mensais e diários | E56: =SUM(E48:E55) -> 515.04966
B58: Módulo 3: Insumos Diversos
B59: 3 | C59: Insumos diversos | E59: Valor (R$)
B60: A | C60: Uniformes (Cotação no Mercado) | E60: =Insumos!G13 -> 41.08
B61: B | C61: Materiais (Cotação no Mercado) | E61: =Insumos!G20 -> 37.54
B62: C | C62: Equipamentos (Cotação no Mercado) | E62: =Insumos!G28 -> 149.88
B63: D | C63: Outros | E63: 0
B64: Total de Insumos Diversos | E64: =SUM(E60:E63) -> 228.5
B66: Módulo 4: Encargos Sociais e Trabalhistas
B67: Submódulo 4.1 – Encargos previdenciários e FGTS
B68: 4.1 | C68: Encargos previdenciários e FGTS | D68: % | E68: Valor (R$)
B69: A | C69: INSS | D69: 0.2 | E69: =E44*0.2 -> 461.999577
B70: B | C70: SESI OU SESC | D70: 0.015 | E70: =E44*0.015 -> 34.64996828
B71: C | C71: SENAI OU SENAC | D71: 0.01 | E71: =E44*0.01 -> 23.09997885
B72: D | C72: INCRA | D72: 0.002 | E72: =E44*0.002 -> 4.61999577
B73: E | C73: Salário Educação | D73: 0.025 | E73: =E44*0.025 -> 57.74994713
B74: F | C74: FGTS | D74: 0.08 | E74: =E44*0.08 -> 184.7998308
B75: G | C75: Seguro Acidente de Trabalho | D75: 0.03 | E75: =E44*0.03 -> 69.29993656
B76: H | C76: SEBRAE | D76: 0.006 | E76: =E44*0.006 -> 13.85998731
B77: Total | D77: =SUM(D69:D76) -> 0.368 | E77: =SUM(E69:E76) -> 850.0792217
B79: Submódulo 4.2 – 13º salário e Adicional de Férias
B80: 4.2 | C80: 13º Salário e Adicional de Férias | E80: Valor (R$)
B81: A | C81: 13º Salário | D81: =5/56 -> 0.08928571429 | E81: =D81*E44 -> 206.2498112
B82: B | C82: Adicional de Férias | D82: =(1/3)*D81 -> 0.02976190476 | E82: =E44*D82 -> 68.74993706
B83: Subtotal | D83: =D81+D82 -> 0.119047619 | E83: =SUM(E81:E82) -> 274.9997482
B84: C | C84: Incidência do Submódulo 4.1 sobre 13º salário e adicional de férias | D84: =D77 -> 0.368 | E84: =D84*E83 -> 101.1999074
B85: Total | D85: =SUM(D83:D84) -> 0.487047619 | E85: =SUM(E83:E84) -> 376.1996556
B87: Submódulo 4.3 – Afastamento Maternidade
B88: 4.3 | C88: Afastamento Maternidade | E88: Valor (R$)
B89: A | C89: Afastamento Maternidade | D89: 0.0137 | E89: =E44*D89 -> 31.64697103
B90: B | C90: Incidência do submódulo 4.1 sobre afastamento maternidade | D90: =D77*D89 -> 0.0050416 | E90: =E89*D90 -> 0.1595513691
B91: Total | D91: =SUM(D89:D90) -> 0.0187416 | E91: =SUM(E89:E90) -> 31.8065224
B93: Submódulo 4.4 – Provisão para Rescisão
B94: 4.4 | C94: Provisão para Rescisão | E94: Valor (R$)
B95: A | C95: Aviso prévio Indenizado | D95: =((1/12)* 0.05) -> 0.004166666667 | E95: =E44*D95 -> 9.624991188
B96: B | C96: Incidência do FGTS sobre aviso prévio indenizado (provisão para rescisão) | D96: =D74*D95 -> 0.0003333333333 | E96: =E44*D96 -> 0.7699992951
B97: C | C97: Multa do FGTS do aviso prévio indenizado (manual) | D97: =0.08*0.5*0.9*(1 + 5/56+5/56+1/3*5/56) -> 0.0435 | E97: =D97*E44 -> 100.484908
B98: D | C98: Aviso prévio trabalhado (manual) | D98: =((7/30)/12)*0.02 -> 0.0003888888889 | E98: =E44*D98 -> 0.8983325109
B99: E | C99: Incidência do submódulo 4.1 sobre aviso prévio trabalhado | D99: =D77 -> 0.368 | E99: =E98*D77 -> 0.330586364
B100: F | C100: Multa FGTS do aviso prévio trabalhado | D100: =(40%)*D74 -> 0.032 | E100: =D100*E98 -> 0.02874664035
B101: Total | D101: =SUM(D95:D100) -> 0.4483888889 | E101: =SUM(E95:E100) -> 112.137564
B103: Submódulo 4.5 – Custo de Reposição do Profissional Ausente
B104: 4.5 | C104: Composição do custo de Reposição do Profissional Ausente | E104: Valor (R$)
B105: A | C105: Férias | D105: =(5/56) -> 0.08928571429 | E105: =E44*D105 -> 206.2498112
B106: B | C106: Ausência por doença | D106: =(5.96/30)/12 -> 0.01655555556 | E106: =E44*D106 -> 38.24329832
B107: C | C107: Licença paternidade | D107: =((5/30)/12)*0.015 -> 0.0002083333333 | E107: =E44*D107 -> 0.4812495594
B108: D | C108: Ausências legais | D108: =(2.96/30)*(1/12) -> 0.008222222222 | E108: =E44*D108 -> 18.99331594
B109: E | C109: Ausência por acidente de trabalho | D109: =((15/30)/12)*0.0078 -> 0.000325 | E109: =E44*D109 -> 0.7507493127
B110: F | C110: Outros | D110: 0 | E110: 0
B111: Subtotal | D111: =SUM(D105:D110) -> 0.1145968254 | E111: =SUM(E105:E110) -> 264.7184243
B112: G | C112: Incidência do submódulo 4.1 sobre o Custo de reposição | D112: =D77 -> 0.368 | E112: =E111*D112 -> 97.41638015
B113: Total | D113: =SUM(D111:D112) -> 0.4825968254 | E113: =SUM(E111:E112) -> 362.1348045
B115: Quadro – resumo – Módulo 4 – Encargos sociais e trabalhistas
B116: 4 | C116: Encargos Sociais e Trabalhistas | E116: Valor (R$)
B117: 4.1 | C117: 13º salário+Adicional de Férias | E117: =E85 -> 376.1996556
B118: 4.2 | C118: Encargos Previdenciários e FGTS | E118: =E77 -> 850.0792217
B119: 4.3 | C119: Afastamento Maternidade | E119: =E91 -> 31.8065224
B120: 4.4 | C120: Custo de Rescisão | E120: =E101 -> 112.137564
B121: 4.5 | C121: Custo de Reposição do Profissional Ausente | E121: =E113 -> 362.1348045
B122: 4.6 | C122: Outros | E122: 0
B123: Total | E123: =SUM(E117:E122) -> 1732.357768
B125: Módulo 5: Custos indiretos, tributos e lucro
B126: 5 | C126: Custos Indiretos, Tributos e Lucro | D126: % | E126: Valor (R$)
B127: A | C127: Custos Indiretos (Portaria nº 7 da IN nº2/2008) | D127: 0.05 | E127: =E144*D127 -> 239.2952657
B128: B | C128: Tributos
B129: B.1 | C129: Tributos Federais
B130: B.1.1 | C130: PIS (depende do regime de tributação) | D130: 0.0065 | E130: =(E144+E127+E135)*D130 -> 34.21922299
B131: B.1.1 | C131: COFINS (depende do regime de tributação) | D131: 0.03 | E131: =(E144+E127+E135)*D131 -> 157.9348753
B132: B.2 | C132: Tributos Estaduais (ISS) | D132: 0.05 | E132: =(E144+E127+E135)*D132 -> 263.2247922
B133: B.3 | C133: Tributos Municipais | E133: 0
B134: B.4 | C134: Outros Tributos | E134: 0
B135: C | C135: Lucro | D135: 0.05 | E135: =(E44+E56+E64+E123)*D135 -> 239.2952657
B136: Total | E136: =SUM(E127:E135) -> 933.9694219
B138: Anexo III – B – Quadro resumo do custo por empregado
B139: Mão-de-obra vinculada à execução contratual (valor por empregado) | E139: Valor (R$)
B140: A | C140: Módulo 1- Composição da Remuneração | E140: =E44 -> 2309.997885
B141: B | C141: Módulo 2- Benefícios Mensais e Diários | E141: =E56 -> 515.04966
B142: C | C142: Módulo 3- Insumos Diversos (uniformes, materiais, equipamentos e outros) | E142: =E64 -> 228.5
B143: D | C143: Módulo 4- Encargos Sociais e Trabalhistas | E143: =E123 -> 1732.357768
B144: Subtotal (A+B+C+D) | E144: =SUM(E140:E143) -> 4785.905313
B145: E | C145: Módulo 5 – Custos indiretos, tributos e lucro | E145: =E136 -> 933.9694219
B146: Valor total por empregado | E146: =SUM(E144:E145) -> 5719.874735
B148: Anexo III –C – Quadro-resumo – Valor Mensal dos Serviços
B149: Tipo de serviço | D149: Valor proposto por empregado | E149: Qtde de empregados por posto | F149: Valor proposto por posto | G149: Qtde de postos | H149: Valor total dos serviços
B150: (A) | D150: (B) | E150: (C) | F150: (D)=(BXC) | G150: (E) | H150: (F)=(DxE)
B151: I | C151: Serviço 1 (com adicional noturno) | D151: =E146 -> 5719.874735 | E151: 2 | F151: =ROUND(D151*E151,2) -> 11439.75 | G151: 1 | H151: =ROUND(F151*G151,2) -> 11439.75
B152: II | C152: Serviço 2 (indicar) | D152: 0 | F152: 0 | H152: 0
B154: Valor mensal dos serviços (I+II) | H154: =ROUND(SUM(H151:H153),2) -> 11439.75
B156: Anexo III –D – Quadro-demonstrativo – Valor Global da proposta
B157: Valor global da proposta
C158: Descrição | F158: Valor (R$)
B159: A | C159: Valor proposto por unidade de medida | F159: =F151 -> 11439.75
B160: B | C160: Valor mensal do serviço | F160: =H154 -> 11439.75
B161: C | C161: Valor global da proposta (valor mensal do serviço x nº meses do contrato) | F161: =ROUND(F160*12,2) -> 137277

Sheet Insumos
B2: DISCRIMINAÇÃO DE UNIFORMES, EPIs e EQUIPAMENTOS
B4: Item | C4: Uniforme | D4: Unid. | E4: Quant. | F4: Preço Unit. | G4: Sub-Total
B5: 1 | C5: Calça social | D5: und | E5: 4 | F5: =AVERAGE(F34,F60,F86) -> 43.42 | G5: =E5*F5 -> 173.68
B6: 2 | C6: Camisa social | D6: und | E6: 4 | F6: =AVERAGE(F35,F61,F87) -> 35.01666667 | G6: 140.0666667
B7: 3 | C7: Cinto | D7: und | E7: 2 | F7: 10.00333333 | G7: 20.00666667
B8: 4 | C8: Meia social masculina | D8: par | E8: 4 | F8: 4.123333333 | G8: 16.49333333
B9: 5 | C9: Bota (cuturno) | D9: par | E9: 2 | F9: 62.57 | G9: 125.14
B10: 6 | C10: Quepe ou boné com emblema | D10: und | E10: 1 | F10: 11.67 | G10: 11.67
B11: 7 | C11: Crachá de identificação | D11: und | E11: 1 | F11: 5.856666667 | G11: 5.856666667
B12: Total por ano | G12: =SUM(G5:G11) -> 492.9133333
B13: Custo mensal | G13: =ROUND(G12/12,2) -> 41.08
B15: Item | C15: Material | D15: Unid. | E15: Quant. | F15: Preço Unit. | G15: Sub-Total
B16: 1 | C16: Livro de ocorrência | D16: und | E16: 1 | F16: =AVERAGE(F44,F70,F96) -> 12.75333333 | G16: =E16*F16 -> 12.75333333
B17: 2 | C17: Colete balístico | D17: und | E17: 1 | F17: =AVERAGE(F45,F71,F97) -> 385.99 | G17: =E17*F17 -> 385.99
B18: 3 | C18: Lanterna recarregável | D18: und | E18: 1 | F18: 51.71666667 | G18: =E18*F18 -> 51.71666667
B19: Total por ano | G19: =SUM(G16:G18) -> 450.46
B20: Custo mensal | G20: =ROUND(G19/12,2) -> 37.54
B22: Item | C22: Equipamento | D22: Unid. | E22: Quant. | F22: Preço Unit. | G22: Sub-Total
B23: 1 | C23: Revólver | D23: und | E23: 1 | F23: =AVERAGE(F50,F76) -> 1700 | G23: =E23*F23 -> 1700
B24: 2 | C24: Munição | D24: conj | E24: 1 | F24: =AVERAGE(F51,F77) -> 16.1 | G24: =E24*F24 -> 16.1
B25: 3 | C25: Coldre | D25: und | E25: 1 | F25: 32.93 | G25: =E25*F25 -> 32.93
B26: 4 | C26: Capa do colete balístico | D26: und | E26: 1 | F26: 49.5 | G26: =E26*F26 -> 49.5
B27: Total por ano | G27: =SUM(G23:G26) -> 1798.53
B28: Custo mensal | G28: =ROUND(G27/12,2) -> 149.88
B31: STONE
B33: Item | C33: Uniforme | D33: Unid. | E33: Quant. | F33: Preço Unit. | G33: Sub-Total
B34: 1 | C34: Calça social | D34: und | E34: 2 | F34: 64 | G34: =E34*F34 -> 128
B35: 2 | C35: Camisa social | D35: und | E35: 2 | F35: 50 | G35: 100
B36: 3 | C36: Cinto | D36: und | E36: 1 | F36: 12 | G36: 12
B37: 4 | C37: Meia social masculina | D37: par | E37: 1 | F37: 3 | G37: 3
B38: 5 | C38: Bota (cuturno) | D38: par | E38: 1 | F38: 75 | G38: 75
B39: 6 | C39: Quepe ou boné com emblema | D39: und | E39: 1 | F39: 12 | G39: 12
B40: 7 | C40: Crachá de identificação | D40: und | E40: 1 | F40: 6.5 | G40: 6.5
B41: Total por ano | G41: =SUM(G34:G40) -> 336.5
B42: Custo mensal | G42: =ROUND(G41/12,2) -> 28.04
B43: Item | C43: Material | D43: Unid. | E43: Quant. | F43: Preço Unit. | G43: Sub-Total
B44: 1 | C44: Livro de ocorrência | D44: und | E44: 1 | F44: 11.25 | G44: =E44*F44 -> 11.25
B45: 2 | C45: Colete balístico | D45: und | E45: 1 | F45: 450 | G45: =E45*F45 -> 450
B46: 3 | C46: Lanterna recarregável | D46: und | E46: 1 | F46: 28 | G46: =E46*F46 -> 28
B47: Total por ano | G47: =SUM(G44:G46) -> 489.25
B48: Custo mensal | G48: =ROUND(G47/12,2) -> 40.77
B49: Item | C49: Equipamento | D49: Unid. | E49: Quant. | F49: Preço Unit. | G49: Sub-Total
B50: 1 | C50: Revólver | D50: und | E50: 1 | F50: 1150 | G50: =E50*F50 -> 1150
B51: 2 | C51: Munição | D51: conj | E51: 1 | F51: 25 | G51: =E51*F51 -> 25
B52: 3 | C52: Coldre | D52: und | E52: 1 | F52: 25 | G52: =E52*F52 -> 25
B53: 4 | C53: Capa do colete balístico | D53: und | E53: 1 | F53: 99 | G53: =E53*F53 -> 99
B54: Total por ano | G54: =SUM(G50:G53) -> 1299
B55: Custo mensal | G55: =ROUND(G54/12,2) -> 108.25
B57: C&S VIGILÂNCIA E SEGURANÇA
B59: Item | C59: Uniforme | D59: Unid. | E59: Quant. | F59: Preço Unit. | G59: Sub-Total
B60: 1 | C60: Calça social | D60: und | E60: 2 | F60: 21.26 | G60: =E60*F60 -> 42.52
B61: 2 | C61: Camisa social | D61: und | E61: 2 | F61: 20.05 | G61: 40.1
B62: 3 | C62: Cinto | D62: und | E62: 1 | F62: 9.11 | G62: 9.11
B63: 4 | C63: Meia social masculina | D63: par | E63: 1 | F63: 6.38 | G63: 6.38
B64: 5 | C64: Bota (cuturno) | D64: par | E64: 1 | F64: 57.71 | G64: 57.71
B65: 6 | C65: Quepe ou boné com emblema | D65: und | E65: 1 | F65: 9.11 | G65: 9.11
B66: 7 | C66: Crachá de identificação | D66: und | E66: 1 | F66: 2.25 | G66: 2.25
B67: Total por ano | G67: =SUM(G60:G66) -> 167.18
B68: Custo mensal | G68: =ROUND(G67/12,2) -> 13.93
B69: Item | C69: Material | D69: Unid. | E69: Quant. | F69: Preço Unit. | G69: Sub-Total
B70: 1 | C70: Livro de ocorrência | D70: und | E70: 1 | F70: 9.11 | G70: =E70*F70 -> 9.11
B71: 2 | C71: Colete balístico | D71: und | E71: 1 | F71: 321.98 | G71: =E71*F71 -> 321.98
B72: 3 | C72: Lanterna recarregável | D72: und | E72: 1 | F72: 82.15 | G72: =E72*F72 -> 82.15
B73: Total por ano | G73: =SUM(G70:G72) -> 413.24
B74: Custo mensal | G74: =ROUND(G73/12,2) -> 34.44
B75: Item | C75: Equipamento | D75: Unid. | E75: Quant. | F75: Preço Unit. | G75: Sub-Total
B76: 1 | C76: Revólver | D76: und | E76: 1 | F76: 2250 | G76: =E76*F76 -> 2250
B77: 2 | C77: Munição | D77: conj | E77: 1 | F77: 7.2 | G77: =E77*F77 -> 7.2
B78: 3 | C78: Coldre | D78: und | E78: 1 | F78: 40.86 | G78: =E78*F78 -> 40.86
B79: 4 | C79: Capa do colete balístico | D79: und | E79: 1 | F79: 0 | G79: =E79*F79 -> 0
B80: Total por ano | G80: =SUM(G76:G79) -> 2298.06
B81: Custo mensal | G81: =ROUND(G80/12,2) -> 191.51
B83: COLABORE
B85: Item | C85: Uniforme | D85: Unid. | E85: Quant. | F85: Preço Unit. | G85: Sub-Total
B86: 1 | C86: Calça social | D86: und | E86: 2 | F86: 45 | G86: =E86*F86 -> 90
B87: 2 | C87: Camisa social | D87: und | E87: 2 | F87: 35 | G87: 70
B88: 3 | C88: Cinto | D88: und | E88: 1 | F88: 8.9 | G88: 8.9
B89: 4 | C89: Meia social masculina | D89: par | E89: 1 | F89: 2.99 | G89: 2.99
B90: 5 | C90: Bota (cuturno) | D90: par | E90: 1 | F90: 55 | G90: 55
B91: 6 | C91: Quepe ou boné com emblema | D91: und | E91: 1 | F91: 13.9 | G91: 13.9
B92: 7 | C92: Crachá de identificação | D92: und | E92: 1 | F92: 8.82 | G92: 8.82
B93: Total por ano | G93: =SUM(G86:G92) -> 249.61
B94: Custo mensal | G94: =ROUND(G93/12,2) -> 20.8
B95: Item | C95: Material | D95: Unid. | E95: Quant. | F95: Preço Unit. | G95: Sub-Total
B96: 1 | C96: Livro de ocorrência | D96: und | E96: 1 | F96: 17.9 | G96: =E96*F96 -> 17.9
B97: 2 | C97: Colete balístico | D97: und | E97: 1 | F97: =AVERAGE(F45,F71) -> 385.99 | G97: =E97*F97 -> 385.99
B98: 3 | C98: Lanterna recarregável | D98: und | E98: 1 | F98: 45 | G98: =E98*F98 -> 45
B99: Total por ano | G99: =SUM(G96:G98) -> 448.89
B100: Custo mensal | G100: =ROUND(G99/12,2) -> 37.41
B101: Item | C101: Equipamento | D101: Unid. | E101: Quant. | F101: Preço Unit. | G101: Sub-Total
B102: 1 | C102: Revólver | D102: und | E102: 1 | G102: =E102*F102 -> 0
B103: 2 | C103: Munição | D103: conj | E103: 1 | G103: =E103*F103 -> 0
B104: 3 | C104: Coldre | D104: und | E104: 1 | G104: =E104*F104 -> 0
B105: 4 | C105: Capa do colete balístico | D105: und | E105: 1 | G105: =E105*F105 -> 0
B106: Total por ano | G106: =SUM(G102:G105) -> 0
B107: Custo mensal | G107: =ROUND(G106/12,2) -> 0
